Workbook

Sheet Paramètres
A1: Drone | B1: Catégories
A2: Unité de tournage
A3: Unité de post-production
A4: Market
A5: Admin
A6: Régie & frais
A8: Drone_Frais | B8: Drone
A9: Drone_Consommables
A10: Drone_Li-Po
A11: Drone_Accessoires
A12: Drone_QU4D-1
A13: Drone_QU4D-2
A14: Drone_X8-1
A15: Drone_Outils Vidéos
A16: Drone_Nacelle 1 MiM
A17: Drone_Nacelle 2 Dragon
A18: Drone_MoviM5
A20: U.Tournage_Accessoires | B20: Unité de tournage
A21: U.Tournage_Consommables
A22: U.Tournage_Batteries
A23: U.Tournage_Caméras
A24: U.Tournage_Optiques
A25: U.Tournage_Stockage
A26: U.Tournage_Son
A28: U.P.Prod_Accessories | B28: Unité de post-production
A29: U.P.Prod_Logiciels
A30: U.P.Prod_Station
A31: U.P.Prod_Stockage
A33: Market_Créa | B33: Market
A34: Makert_Communication
A35: Market_Vente
A37: Admin_Fournitures | B37: Admin
A38: Admin_Honoraires
A39: Admin_Frais de fonctionnement

Sheet Historique des factures
B2: Historiques des factures et postes de dépenses
F4: TOTAL ACTUEL
F6: HT | G6: TTC | H6: TVA
D7: Toutes catégories | F7: =F10+F11+F12+F13+F14+F9 -> 153.79 | G7: =G9+G10+G11+G12+G13+G14 -> 185.92 | H7: =H9+H10+H11+H12+H13+H14 -> 32.13
D9: Dont Drone | F9: =SUMIF(D18:D1006,"Drone",F18:F1006) -> 153.79 | G9: =SUMIF(D18:D1006,"Drone",G18:G1006) -> 185.92 | H9: =SUMIF(D18:D1006,"Drone",H18:H1006) -> 32.13
D10: Dont Unité de tournage | F10: =SUMIF(D18:D1006,"Unité de tournage",F18:F1006) -> 0 | G10: =SUMIF(D18:D1006,"Unité de tournage",G18:G1006) -> 0 | H10: =SUMIF(D18:D1006,"Unité de tournage",H18:H1006) -> 0
D11: Dont Unité de post-prodroduction | F11: =SUMIF(D18:D1006,"Unité de post-production",F18:F1006) -> 0 | G11: =SUMIF(D18:D1006,"Unité de post-production",G18:G1006) -> 0 | H11: =SUMIF(D18:D1006,"Unité de post-production",H18:H1006) -> 0
D12: Dont Market | F12: =SUMIF(D18:D1006,"Market",F18:F1006) -> 0 | G12: =SUMIF(D18:D1006,"Market",G18:G1006) -> 0 | H12: =SUMIF(D18:D1006,"Market",H18:H1006) -> 0
D13: Dont Admin | F13: =SUMIF(D18:D1006,"Admin",F18:F1006) -> 0 | G13: =SUMIF(D18:D1006,"Admin",G18:G1006) -> 0 | H13: =SUMIF(D18:D1006,"Admin",H18:H1006) -> 0
D14: Dont Régie & frais | F14: =SUMIF(D18:D1006,"Régie & frais",F18:F1006) -> 0 | G14: =SUMIF(D18:D1006,"Régie & frais",G18:G1006) -> 0 | H14: =SUMIF(D18:D1006,"Régie & frais",H18:H1006) -> 0
B16: INDENTIF | C16: Date | D16: Catégorie | E16: Facture n° | F16: TOTAL facture | I16: Infos | L16: Prix
F17: HT | G17: TTC | H17: dont TVA | I17: Caractéristiques | J17: Sous-catégorie | K17: Quantité | L17: HT | M17: TTC | N17: dont TVA
B18: 1b_1&1 | C18: 2013-07-13 | D18: Drone | E18: 1 | F18: =SUM(L18) -> 10.98 | G18: =SUM(M18) -> 13.13 | H18: =SUM(N18) -> 2.15 | I18: Pack domaine | J18: Drone_Frais | K18: 1 | L18: 10.98 | M18: 13.13 | N18: 2.15
B19: 2_Altigator | C19: 2013-08-13 | D19: Drone | E19: n°13-02708 | F19: =SUM(L19:L26) -> 142.81 | G19: =SUM(M19:M26) -> 172.79 | H19: =SUM(N19:N26) -> 29.98 | I19: Hélice Graupner E-Prop 11x5L | J19: Drone_Frais | K19: 4 | L19: 19.67 | M19: 23.8 | N19: 4.13
I20: Hélice Graupner E-Prop 11x5 | J20: Drone_Frais | K20: 4 | L20: 19.67 | M20: 23.8 | N20: 4.13
G21: =SUM(G18:G20) -> 185.92 | I21: Bague adaptatrice hélice | J21: Drone_Frais | K21: 4 | L21: 3.14 | M21: 3.8 | N21: 0.66
I22: Hélice APC 10x3,8 SFP | J22: Drone_Frais | K22: 4 | L22: 16.86 | M22: 20.4 | N22: 3.54
G23: =SUM(G18:G22) -> 371.84 | I23: Hélice APC 10x3,8 SF | J23: Drone_Frais | K23: 4 | L23: 13.88 | M23: 16.79 | N23: 2.91
I24: Equilibreur Hélice | J24: Drone_Frais | K24: 1 | L24: 24.71 | M24: 29.9 | N24: 5.19
G25: =SUM(G19:G24) -> 730.55 | I25: Frais de ports | J25: Drone_Frais | K25: 1 | L25: 40.81 | M25: 49.38 | N25: 8.57
I26: Frais paypal | J26: Drone_Frais | K26: 1 | L26: 4.07 | M26: 4.92 | N26: 0.85
O42: x
O141: 2014_TVA 20,0
O150: x
O154: x
O164: x
O180: x

Sheet Drone
B2: Répartition des dépenses drone - Répartition des dépenses drone - Répartition des dépenses drone
C5: Frais divers | K5: Consommables | R5: Li-Po (batteries)
B6: Frais divers | C6: TOTAL DEPENSES | G6: =SUM(G10:G139) -> 0 | H6: =SUM(H10:H139) -> 0 | I6: =SUM(I10:I139) -> 0 | J6: Consommables | K6: Références | L6: Caractéristiques | M6: Quantité | N6: Prix | Q6: Li-Po | R6: Références | S6: Caractéristiques | T6: Quantité | U6: Prix
C8: Références | D8: Date | E8: Caractéristiques | F8: Quantité | H8: Prix
G9: HT | H9: TTC | I9: dont TVA | N9: HT | O9: TTC | P9: dont TVA | U9: HT | V9: TTC | W9: dont TVA
P10: 2.65
P11: 3.88
P12: 2.49
P13: 4.13
P14: 4.13
P15: 0.66
P16: 3.54
P17: 2.91
P18: 39.2
P19: 7.5
P20: 4.3
P21: 4.3
P22: 1.95
P23: 12.96
P24: 2.59
P25: 2.46
P26: 2.46
P27: 1.97
P28: 1.47
P29: 3.39
P30: 5.9
P31: 0.7
P32: 0.85
P33: 2.85
P34: 0.97
P35: 0.4
P36: 1.73
P37: 1.14
P38: 8.35
P39: 0.52
P40: 1.74
P41: 0.3
P42: 2.56
P43: 1.95
P44: 1.82
P45: 0.75
P46: 0.75
P47: 1.18
P48: 1
P49: 3.01
P50: 1.65
P51: 0.42
P52: 0.47
P53: 2.15
P54: 0.17
P55: 8.3
P56: 1.95
P57: 12.96
P58: 2.59
P59: 2.46
P60: 2.46
P61: 1.97
P62: 1.47
P63: 3.39
P64: 8.9
P65: 14.96
P66: 3.13
P67: 4.02
P68: 1.38
P70: =SUM(P10:P69) -> 222.21
